[Event "GCT Superbet Rapid Poland 2025"]
[Site "Warsaw"]
[Date "2025.04.27"]
[Round "6.1"]
[White "Fedoseev, Vladimir"]
[Black "Deac, Bogdan-Daniel"]
[Result "1/2-1/2"]
[ECO "E06"]
[WhiteElo "2739"]
[BlackElo "2668"]
[Annotator "TA"]
[PlyCount "123"]
[EventDate "2025.??.??"]
[EventType "rapid"]
[TimeControl "1500+10"]

{[%evp 18,123,12,0,20,0,0,0,0,0,0,-10,-9,-6,4,4,22,26,68,70,54,23,21,22,48,39,28,10,14,0,0,0,8,0,17,22,14,16,19,20,21,15,18,0,0,0,18,0,6,0,0,0,0,0,32,44,54,26,90,91,84,80,80,72,90,61,59,33,58,37,37,0,8,0,0,0,0,0,0,0,0,0,0,0,0,0,0,0,0,0,0,0,0,0,0,0,0,0,0,0,0,0,0,0,0,0,0,0]} 1. d4 {[%emt 0:00:11]} Nf6 {[%emt 0:00:01]} 2. c4 {[%emt 0:00:02]} e6 {[%emt 0:00:02]} 3. Nf3 {[%emt 0:00:03]} d5 {[%emt 0:00:02]} 4. g3 {[%emt 0:00:02]} Be7 {[%emt 0:00:02]} 5. Bg2 {[%emt 0:00:02]} O-O {[%emt 0:00:03]} 6. Nc3 {[%emt 0:00:03]} dxc4 {[%emt 0:00:02]} 7. Ne5 {[%emt 0:00:02]} c5 {[%emt 0:00:02]} 8. dxc5 {[%emt 0:00:06]} Qxd1+ {[%emt 0:00:03]} 9. Nxd1 {[%emt 0:00:03]} Bxc5 {[%emt 0:00:01]} 10. O-O {[%emt 0:00:13] White sacrificed a pawn} Nd5 {[%emt 0:00:41] Repels Nc3. E06: Closed Catalan: Early deviations.} 11. Bd2 {[%emt 0:02:09]} ({RR} 11. Ne3 Nc6 12. N3xc4 Nxe5 13. Nxe5 Bd4 14. Nd3 {½-½ (14) Nakamura,H (2761)-Radjabov,T (2759) Moscow 2019}) ({RR} 11. Ne3 Bxe3 12. Bxe3 c3 13. b3 f6 14. Nd3 Rd8 15. Rac1 Nc6 16. Rfd1 e5 17. Nc5 Nxe3 18. Rxd8+ Nxd8 19. fxe3 Rb8 20. Rxc3 Kf8 21. Bxb7 Nxb7 22. Na6 Ra8 23. Nc7 Rb8 24. Na6 {½-½ (24) Sargsyan,S (2639)-Deac,B (2680) Jermuk ARM 2024}) 11... Nc6 {[%emt 0:01:06]} 12. Nxc4 {[%emt 0:00:06]} Rd8 {[%emt 0:01:05]} 13. Nc3 {[%emt 0:02:51][%cal Bd1c3,Bc3e4,Be4d6,Bd6b5][%mdl 32]} b6 $146 {[%emt 0:01:43]} ({RR} 13... Nxc3 14. Bxc3 Bd7 15. e3 Rac8 16. Rfc1 Be7 17. a4 b6 18. a5 bxa5 19. Nxa5 Nxa5 20. Rxa5 Bc5 21. Rd1 f6 22. Bh3 Kf7 23. Bd4 e5 24. Bxc5 Bxh3 {½-½ (24) Olafsson,F-Zwaig,A Reykjavik 1975}) ({RR} 13... Nb6 14. Nxb6 Bxb6 15. Rfd1 Bd7 16. Na4 Bd4 17. e3 Bf6 18. Nc5 Rab8 19. Bc3 Be8 20. Bxf6 gxf6 21. Ne4 Rxd1+ 22. Rxd1 Kg7 23. Nd6 Kf8 24. Nxe8 Kxe8 25. g4 Ne5 26. h3 Ke7 27. f4 Nc4 28. Rc1 {Wong,Z (2397)-Balabayeva,X (2335) Almaty KAZ 2024 1-0 (69)}) ({RR} 13... Nb6 14. Nxb6 Bxb6 15. Rfd1 Bd7 16. Na4 Bd4 17. e3 Bf6 18. Nc5 Rab8 19. Bc3 Be8 20. Bxf6 gxf6 21. Ne4 Rxd1+ 22. Rxd1 Kg7 23. Nd6 Kf8 24. Nxe8 Kxe8 25. g4 Ne5 26. h3 Ke7 27. f4 Nc4 28. Rc1 {Wong,Z (2397)-Balabayeva,X (2335) Almaty KAZ 2024 1-0 (69)}) 14. Rfc1 $146 {[%emt 0:00:56]} (14. Ne4 Be7 15. Rac1 Bb7 {½-½ Nikolov,M (2522)-Cvitan,O (2470) Cattolica Halloween op 2021 (7)}) 14... Ba6 {[%emt 0:05:56]} 15. Ne4 {[%emt 0:02:35]} Bd4 {[%emt 0:03:15]} 16. Rab1 {[%emt 0:04:15]} Ne5 {[%emt 0:04:26]} 17. b3 {[%emt 0:00:14][%cal Bb2b3,Bb3c4][%mdl 32] and e3 should not be overlooked} Nxc4 {[%emt 0:01:35]} 18. bxc4 {[%emt 0:00:01]} Ne7 {[%emt 0:00:06]} 19. Nd6 {[%emt 0:04:07] Prevents Rac8.} Rab8 {[%emt 0:01:54]} 20. Bb4 {[%emt 0:00:02]} Bc5 {[%emt 0:03:01]} 21. Bxc5 {[%emt 0:00:01]} bxc5 {[%emt 0:00:01]} 22. Nb5 {[%emt 0:00:01]} g6 {[%emt 0:00:49]} 23. a4 {[%emt 0:03:23]} (23. Nxa7 Rxb1 24. Rxb1 Bxc4 $15) 23... Rd7 {[%emt 0:00:14]} 24. f4 {[%emt 0:00:38]} Rbd8 {[%emt 0:00:28]} 25. Kf2 {[%emt 0:00:01]} Bb7 {[%emt 0:00:03]} 26. Bxb7 {[%emt 0:00:35]} Rxb7 {[%emt 0:00:07]} 27. Rd1 {[%emt 0:00:01]} Rbd7 {[%emt 0:00:53]} 28. Rxd7 {[%emt 0:01:25]} Rxd7 $11 {[%emt 0:00:01][%mdl 4096] Endgame KRN-KRN} 29. Nc3 {[%emt 0:00:03]} Rd4 {[%emt 0:00:26]} 30. Rb8+ {[%emt 0:00:35]} Kg7 {[%emt 0:00:20]} 31. Rb7 {[%emt 0:00:01]} Rxc4 {[%emt 0:00:24]} 32. Nb5 {[%emt 0:00:01]} a6 {[%emt 0:01:06]} 33. Nd6 {[%emt 0:00:40]} Rd4 {[%emt 0:00:08]} 34. Ne8+ {[%emt 0:00:01]} Kf8 {[%emt 0:00:02]} 35. Nf6 {[%emt 0:00:00]} Kg7 {[%emt 0:00:37]} 36. Nd7 {[%emt 0:00:13]} Rb4 {[%emt 0:00:11]} 37. Ra7 {[%emt 0:00:12]} Nc6 {[%emt 0:00:09]} ({Much weaker is} 37... Rxa4 38. Nxc5 Ra5 39. Nxe6+ (39. Nxa6 Nd5 $17) 39... Kf6 40. Nc7 $16) (37... c4 $1 $11 {remains equal.}) 38. Rxa6 $16 {[%emt 0:00:05]} Nb8 {[%emt 0:00:05]} 39. Nxb8 {[%emt 0:00:24]} Rxb8 {[%emt 0:00:02] KR-KR} 40. a5 {[%emt 0:00:26]} Rb5 {[%emt 0:00:04]} 41. Ke3 {[%emt 0:00:02]} Rb3+ {[%emt 0:00:08]} 42. Ke4 {[%emt 0:00:11]} Ra3 {[%emt 0:00:23]} 43. Ra7 {[%emt 0:00:23]} h6 {[%emt 0:00:09]} 44. g4 {[%emt 0:00:45]} g5 {[%emt 0:00:12] The position is equal.} 45. f5 {[%emt 0:00:22]} Kf6 {[%emt 0:00:15]} 46. fxe6 {[%emt 0:00:09]} fxe6 {[%emt 0:00:01]} 47. a6 {[%emt 0:00:25]} Ra4+ {[%emt 0:00:07]} 48. Kf3 {[%emt 0:00:29]} Ke5 {[%emt 0:00:18]} 49. e3 {[%emt 0:00:11]} c4 {[%emt 0:00:01]} 50. Ra8 {[%emt 0:00:13]} Ra2 {[%emt 0:00:12]} 51. a7 {[%emt 0:00:17]} c3 {[%emt 0:00:01]} 52. h3 {[%emt 0:00:33]} c2 {[%emt 0:00:09]} 53. Rc8 {[%emt 0:00:01]} Rxa7 {[%emt 0:00:03]} 54. Rc5+ {[%emt 0:00:02]} Kf6 {[%emt 0:00:03]} 55. Rxc2 {[%emt 0:00:02]} Ra4 {[%emt 0:00:02]} 56. Rc7 {[%emt 0:00:07]} Rb4 {[%emt 0:00:02]} 57. Rh7 {[%emt 0:00:02]} Kg6 {[%emt 0:00:01]} 58. Re7 {[%emt 0:00:02]} Kf6 {[%emt 0:00:01]} 59. Rh7 {[%emt 0:00:02]} Kg6 {[%emt 0:00:01]} 60. Re7 {[%emt 0:00:01]} Kf6 {[%emt 0:00:01]} 61. Rh7 {[%emt 0:00:02]} Kg6 {[%emt 0:00:01]} 62. Re7 {[%emt 0:00:01] Weighted Error Value: White=0.05 (flawless) /Black=0.06 (flawless) Mistake: 	--- 	Black=1 Inaccurate: 	White=4 	Black=3 OK: 	White=30 	Black=22 Best: 	White=2 	Black=8} 1/2-1/2

[Event "GCT Superbet Rapid Poland 2025"]
[Site "Warsaw"]
[Date "2025.04.27"]
[Round "6.2"]
[White "Duda, Jan-Krzysztof"]
[Black "Vachier-Lagrave, Maxime"]
[Result "1/2-1/2"]
[ECO "D91"]
[WhiteElo "2739"]
[BlackElo "2722"]
[Annotator "TA"]
[PlyCount "63"]
[EventDate "2025.??.??"]
[EventType "rapid"]
[TimeControl "1500+10"]

{[%evp 9,63,26,22,12,29,19,20,23,38,33,26,19,11,20,20,8,13,21,22,6,20,25,28,20,22,12,22,0,0,0,0,0,0,0,0,0,0,0,0,0,0,0,0,0,0,0,0,0,0,0,0,0,0,0,0,0]} 1. d4 {[%emt 0:00:02]} Nf6 {[%emt 0:00:01]} 2. c4 {[%emt 0:00:02]} g6 {[%emt 0:00:02]} 3. Nc3 {[%emt 0:00:02]} d5 {[%emt 0:00:01]} 4. Bg5 {[%emt 0:00:05]} Bg7 {[%emt 0:00:02]} 5. Nf3 {[%emt 0:00:02]} c5 {[%emt 0:00:05]} 6. Bxf6 {[%emt 0:00:38] D91: Grünfeld: 4 Nf3 Bg7 5 Bg5.} (6. dxc5 {is interesting.} Be6 7. Qb3 dxc4 8. Qxb7 Nbd7 9. Rd1) 6... Bxf6 {[%emt 0:00:06]} 7. cxd5 {[%emt 0:00:04]} ({Don't play} 7. dxc5 d4 8. Nd5 Bg7 $11) (7. Nxd5 Bg7 $11) 7... cxd4 {[%emt 0:00:03]} 8. Nxd4 {[%emt 0:00:02]} Qb6 $1 {[%emt 0:00:02][%csl Bb2,Bd4]} 9. Nb3 {[%emt 0:00:45]} a5 {[%emt 0:00:11]} 10. e3 {[%emt 0:01:12]} a4 {[%emt 0:00:02]} 11. Bb5+ {[%emt 0:00:09]} Bd7 {[%emt 0:00:02]} 12. Nd4 {[%emt 0:00:06]} Bxd4 {[%emt 0:01:17]} 13. Qxd4 $146 {[%emt 0:00:21]} ({RR} 13. Bxd7+ Nxd7 14. Qxd4 Qxd4 15. exd4 Nf6 16. Kd2 Kd7 17. Rhe1 Ra5 18. Re5 Ng4 19. Re2 Nf6 20. Rae1 Re8 21. f3 h5 22. Re5 Ra6 23. a3 Kd6 24. Kd3 Ra5 25. Kc4 Rc8+ 26. Kb4 Ra6 27. Kb5 Rc7 {Lobron,E (2508)-Arman,D (2346) Karlsruhe 2019 1-0 (43)}) 13... Qxd4 {[%emt 0:00:09]} 14. exd4 {[%emt 0:00:02]} Bxb5 {[%emt 0:05:56] Black sacrificed a pawn} 15. Nxb5 {[%emt 0:00:05]} Ra5 {[%emt 0:00:01] [#]} 16. Rc1 $1 {[%emt 0:03:38] aiming for Rc8+.} O-O {[%emt 0:00:03] The position is equal.} 17. Nc7 {[%emt 0:03:17]} Na6 $146 {[%emt 0:01:06] Threatens to win with ...Rc8.} (17... Nd7 18. Kd2 Nf6 19. Rc4 Rd8 20. Re1 Nxd5 21. Nxd5 Raxd5 22. Rxe7 b5 23. Rb4 Rxd4+ 24. Rxd4 Rxd4+ 25. Kc3 Rc4+ 26. Kd3 Rb4 27. Kc3 Rc4+ {½-½ Bluebaum,M (2605)-Swiercz,D (2665) Moscow Aeroflot op-A 15th 2016 (2)}) 18. Kd2 {[%emt 0:03:32]} Nxc7 {[%emt 0:00:15]} 19. Rxc7 {[%emt 0:00:02]} Rxd5 $11 {[%emt 0:00:01][%mdl 4096] Endgame KRR-KRR} 20. Kc3 {[%emt 0:01:33][%cal Oh1e1]} e5 {[%emt 0:04:42]} 21. dxe5 {[%emt 0:00:49]} Rxe5 {[%emt 0:00:09]} 22. Rd1 {[%emt 0:00:09]} b5 {[%emt 0:00:11]} 23. Rd2 {[%emt 0:01:51]} Re4 {[%emt 0:01:33]} 24. b4 {[%emt 0:03:29]} axb3 {[%emt 0:02:05]} 25. Kxb3 {[%emt 0:00:25]} Ra8 {[%emt 0:01:26]} 26. Rb7 {[%emt 0:00:06]} Rea4 {[%emt 0:00:28]} 27. Rdd7 {[%emt 0:01:08]} Ra3+ {[%emt 0:00:27]} 28. Kb4 {[%emt 0:00:03]} R3a4+ {[%emt 0:00:03]} 29. Kb3 {[%emt 0:00:32]} Ra3+ {[%emt 0:00:01]} 30. Kb4 {[%emt 0:00:02]} R3a4+ {[%emt 0:00:01]} 31. Kb3 {[%emt 0:00:04]} Ra3+ {[%emt 0:00:02]} 32. Kb4 {[%emt 0:00:01] Weighted Error Value: White=0.02 (flawless) /Black=0.00 (flawless) OK: 	White=7 	Black=17 Best: 	White=3 	Black=3 Strong: 	--- 	Black=1} 1/2-1/2

[Event "GCT Superbet Rapid Poland 2025"]
[Site "Warsaw"]
[Date "2025.04.27"]
[Round "6.3"]
[White "Gavrilescu, David"]
[Black "Aravindh, Chithambaram VR."]
[Result "1/2-1/2"]
[ECO "B31"]
[WhiteElo "2554"]
[BlackElo "2749"]
[Annotator "TA"]
[PlyCount "56"]
[EventDate "2025.??.??"]
[EventType "rapid"]
[TimeControl "1500+10"]

{[%evp 12,56,9,6,29,24,27,36,34,31,23,15,36,20,50,48,75,0,0,0,0,0,0,0,0,2,0,0,0,0,6,3,10,0,12,-8,-2,-8,-8,-8,0,-5,0,-8,0,-8,0]} 1. e4 {[%emt 0:00:04]} c5 {[%emt 0:00:03]} 2. Nf3 {[%emt 0:00:06]} Nc6 {[%emt 0:00:20]} 3. Bb5 {[%emt 0:00:08]} g6 {[%emt 0:00:09]} 4. O-O {[%emt 0:00:59]} Bg7 {[%emt 0:00:03]} 5. c3 {[%emt 0:00:29]} Nf6 {[%emt 0:00:38]} 6. Re1 {[%emt 0:00:16]} O-O {[%emt 0:00:25]} 7. d4 {[%emt 0:00:20]} a6 {[%emt 0:01:34] 7...d5 is becoming the main line. B31: Sicilian: 2...Nc6 3 Bb5 g6.} 8. Bd3 {[%emt 0:04:49]} cxd4 {[%emt 0:03:36]} ({RR} 8... d5 9. e5 Ne8 10. dxc5 Bg4 11. Be2 Nc7 12. Nbd2 a5 13. h3 Bc8 14. Bd3 Ne6 15. Nb3 a4 16. Nbd4 Nxc5 17. Bc2 Qa5 18. Bd2 Rd8 19. Qc1 Ne6 20. b4 Qc7 21. Nxc6 bxc6 22. Be3 c5 23. bxc5 {Anand,V (2758)-Carlsen,M (2872) Wijk aan Zee 2020 ½-½ (54)}) ({RR} 8... d5 9. e5 Ne4 10. Nbd2 Bf5 11. Nxe4 dxe4 12. Bxe4 Bxe4 13. Rxe4 cxd4 14. cxd4 Qd5 15. Qe2 Rac8 16. Bd2 f5 17. Rh4 f4 18. Bc3 h6 19. Rg4 g5 20. h4 Qe6 21. Nd2 Qf5 22. hxg5 hxg5 23. Ne4 {Gavrilescu,D (2549)-Szalay-Ocsak,B (2107) chess.com INT 2025 1-0 (36)}) 9. cxd4 {[%emt 0:00:12]} Nb4 $146 {[%emt 0:00:04] White is slightly better.} ({RR} 9... d5 10. e5 Ne4 11. Nc3 Nxc3 12. bxc3 f6 13. exf6 exf6 14. Ba3 Rf7 15. h3 Na5 16. Nd2 b5 17. Qf3 Bb7 18. Re6 Bf8 19. Bxf8 Kxf8 20. Rae1 Rc8 21. h4 Rc6 22. h5 Rxe6 23. Rxe6 g5 24. h6 {Tsaknakis,Z (2262)-Risteski,E (2378) Skopje MKD 2024 1-0 (51)}) ({RR} 9... d5 10. e5 Ne4 11. h3 Nb4 12. Bf1 Qc7 13. Na3 Bd7 14. Bd2 Nxd2 15. Qxd2 Qb6 16. Nb1 Bf5 17. Rc1 Be4 18. Be2 Nc6 19. Rd1 f6 20. exf6 Rxf6 21. Nc3 Raf8 22. Qe3 Rf4 23. Na4 Qa7 24. Nc5 {Bivol,A (2370)-Khanin,S (2506) Cheliabinsk 2021 0-1 (38)}) ({RR} 9... d5 10. e5 Ne4 11. h3 Nb4 12. Bf1 Qc7 13. Na3 Bd7 14. Bd2 Nxd2 15. Qxd2 Qb6 16. Nb1 Bf5 17. Rc1 Be4 18. Be2 Nc6 19. Rd1 f6 20. exf6 Rxf6 21. Nc3 Raf8 22. Qe3 Rf4 23. Na4 Qa7 24. Nc5 {Bivol,A (2370)-Khanin,S (2506) Cheliabinsk 2021 0-1 (38)}) 10. Bf1 {[%emt 0:01:43]} d5 {[%emt 0:00:04]} 11. e5 {[%emt 0:00:24][%cal Oa2a3] [#] Threatens to win with a3!.} Ne4 {[%emt 0:00:03]} 12. Nc3 {[%emt 0:02:10]} Bg4 $5 $146 {[%emt 0:00:49][%mdl 8] An interesting novelty.} (12... Nxc3 13. bxc3 Nc6 14. h3 Na5 15. Nh2 Qc7 16. Ng4 Be6 17. Bg5 Rac8 18. Rc1 Qd7 {1-0 Zaitsev,I (2465)-Kupreichik,V (2575) Yerevan Zonal 1982 (14)}) 13. Qb3 {[%emt 0:02:45]} Nc6 {[%emt 0:02:49]} 14. Qxd5 {[%emt 0:02:25]} ({Better is} 14. Qxb7 $16 Rc8 15. Qxa6 (15. Bxa6 Nxc3 16. bxc3 Qa5 $16)) 14... Nxc3 $1 $11 {[%emt 0:00:41] The position is equal.} 15. Qxd8 {[%emt 0:00:03]} Ne2+ {[%emt 0:00:04]} 16. Bxe2 {[%emt 0:00:03][%cal Bf1e2,Be2f3,Bf3b7][%mdl 32]} Raxd8 {[%emt 0:00:07]} 17. Be3 {[%emt 0:00:08]} Bxf3 {[%emt 0:00:05]} 18. Bxf3 {[%emt 0:00:06]} Nxd4 {[%emt 0:00:03]} 19. Bxd4 {[%emt 0:00:05]} Rxd4 {[%emt 0:00:03]} 20. Bxb7 {[%emt 0:01:23] Opposite bishops and equal position} a5 {[%emt 0:00:02]} 21. b3 {[%emt 0:01:05]} Rd2 {[%emt 0:01:36]} 22. Kf1 {[%emt 0:02:52]} Rfd8 {[%emt 0:01:10]} 23. Re2 {[%emt 0:00:17]} Rd1+ {[%emt 0:02:46]} 24. Rxd1 {[%emt 0:00:13]} Rxd1+ {[%emt 0:00:02]} 25. Re1 {[%emt 0:00:02]} Rd2 {[%emt 0:00:15]} 26. Re2 {[%emt 0:00:02]} Rd1+ {[%emt 0:00:04]} 27. Re1 {[%emt 0:00:02]} Rd2 {[%emt 0:00:03]} 28. Re2 {[%emt 0:00:02]} Rd1+ {[%emt 0:00:23] Weighted Error Value: White=0.10 (very precise) /Black=0.07 (flawless) Mistake: 	White=1 	--- Inaccurate: 	--- 	Black=2 OK: 	White=5 	Black=5 Best: 	White=1 	Black=2 Strong: 	--- 	Black=1} 1/2-1/2

[Event "GCT Superbet Rapid Poland 2025"]
[Site "Warsaw"]
[Date "2025.04.27"]
[Round "6.4"]
[White "Firouzja, Alireza"]
[Black "Aronian, Levon"]
[Result "1/2-1/2"]
[ECO "C02"]
[WhiteElo "2757"]
[BlackElo "2747"]
[Annotator "TA"]
[PlyCount "121"]
[EventDate "2025.??.??"]
[EventType "rapid"]
[TimeControl "1500+10"]

{[%evp 15,121,37,37,29,28,27,34,25,31,18,14,27,36,20,20,-69,0,7,0,-72,86,65,45,0,-15,-16,-9,-15,0,0,0,0,0,0,31,-48,-47,-48,-50,-33,-31,-58,-58,-53,-64,-71,-64,-72,-71,-65,-66,-61,-52,-54,-56,-61,-60,-67,-72,-70,-71,-88,-35,-27,-32,-75,-24,-45,-31,-28,-5,-8,-10,-22,0,0,0,0,0,0,0,0,0,0,0,0,0,0,0,0,0,0,0,0,0,0,0,0,0,0,0,0,0,0,0,0,0,0]} 1. e4 {[%emt 0:00:02]} e6 {[%emt 0:00:01]} 2. d4 {[%emt 0:00:05]} d5 {[%emt 0:00:01]} 3. e5 {[%emt 0:00:23]} c5 {[%emt 0:00:01]} 4. c3 {[%emt 0:00:01]} Nc6 {[%emt 0:00:01]} 5. Nf3 {[%emt 0:00:01]} Bd7 {[%emt 0:00:04]} 6. Be2 {[%emt 0:00:18]} Nge7 {[%emt 0:00:06]} 7. O-O {[%emt 0:00:22]} Nf5 {[%emt 0:00:03]} 8. dxc5 $1 {[%emt 0:00:06] 8.dxc5 is better than 8.Bd3.} Bxc5 {[%emt 0:00:01]} 9. Bd3 {[%emt 0:00:24] C02: French: Advance Variation.} O-O {[%emt 0:00:04]} 10. b4 {[%emt 0:00:30]} Bb6 {[%emt 0:00:04]} 11. a4 {[%emt 0:00:06] White is slightly better.} ({RR} 11. Re1 Rc8 12. a3 a5 13. h3 axb4 14. axb4 Ra8 15. Rxa8 Qxa8 16. b5 Na5 17. Bf4 Qa7 18. Re2 Rc8 19. Ra2 Bc5 20. Re2 Bb6 21. Ra2 Bc5 22. c4 b6 23. cxd5 exd5 24. Nc3 Bxf2+ 25. Rxf2 Rxc3 {Ganguly,S (2572)-Soozankar,A (2165) Bangkok THA 2025 1-0}) 11... a6 {[%emt 0:00:21]} 12. Na3 $146 {[%emt 0:00:17]} (12. Nbd2 Nh4 13. Nxh4 Qxh4 14. Nf3 Qh5 15. Bf4 f6 16. exf6 Rxf6 17. Bg3 Raf8 18. b5 axb5 19. axb5 {1-0 Nepomniachtchi,I (2770)-Abdusattorov,N (2769) Chess.com SpeedChess blitz 2024 (1.9)}) ({RR} 12. Ba3 Nce7 13. Nbd2 Qe8 14. Bb2 Rc8 15. c4 Ba7 16. b5 dxc4 17. Nxc4 axb5 18. axb5 Bc5 19. Nd6 Nxd6 20. exd6 Ng6 21. Rb1 f6 22. Qd2 e5 23. Rfe1 Nf4 24. Be4 b6 25. Bd4 Kh8 26. Bxc5 Rxc5 {Shirov,A (2668)-Komarov,D (2493) Calgary CAN 2023 ½-½ (88)}) ({RR} 12. Nbd2 Nh4 13. Nxh4 Qxh4 14. Nf3 Qh5 15. Bf4 f6 16. exf6 Rxf6 17. Bg3 Raf8 18. b5 axb5 19. axb5 Na5 20. Ra4 h6 21. Rh4 Qe8 22. Be5 Rxf3 23. gxf3 Bd8 24. Rg4 Bf6 25. Re1 Bxb5 26. Bb1 Nc4 {Nepomniachtchi,I (2770)-Abdusattorov,N (2769) chess.com INT 2024 1-0 (79)}) ({RR} 12. Ba3 Nce7 13. Nbd2 Qe8 14. Bb2 Rc8 15. c4 Ba7 16. b5 dxc4 17. Nxc4 axb5 18. axb5 Bc5 19. Nd6 Nxd6 20. exd6 Ng6 21. Rb1 f6 22. Qd2 e5 23. Rfe1 Nf4 24. Be4 b6 25. Bd4 Kh8 26. Bxc5 Rxc5 {Shirov,A (2668)-Komarov,D (2493) Calgary CAN 2023 ½-½ (88)}) 12... Rc8 {[%emt 0:00:40]} 13. Re1 {[%emt 0:01:15]} Nce7 {[%emt 0:00:28]} 14. Bd2 {[%emt 0:00:37]} Ng6 {[%emt 0:00:08]} 15. Bg5 {[%emt 0:02:52] Dodges Nfh4} (15. a5 $11 Ba7 16. g3) 15... Qe8 {[%emt 0:00:57]} (15... f6 $15 16. exf6 gxf6) 16. a5 $11 {[%emt 0:01:43]} Ba7 {[%emt 0:00:19]} 17. Qd2 {[%emt 0:00:27] [#]} (17. Bd2 $11) 17... d4 $2 {[%emt 0:02:33] [#]} (17... f6 $1 $17 {[%cal Rf6g5] keeps the pressure on.} 18. exf6 gxf6) 18. c4 $1 $16 {[%emt 0:05:00] White is more active.} Bc6 {[%emt 0:00:03] White has space advantage and is better} 19. Be4 {[%emt 0:00:14]} (19. Qd1 $14) 19... Bxe4 $11 {[%emt 0:02:46]} 20. Rxe4 {[%emt 0:00:01]} f6 $1 $36 {[%emt 0:00:03][%mdl 2048] Black has the initiative.} 21. Bf4 $1 {[%emt 0:00:45]} Bb8 {[%emt 0:01:22]} (21... Nxf4 {seems wilder.} 22. Rxf4 fxe5 23. Nxe5 Bb8) 22. c5 {[%emt 0:02:09]} Nxf4 {[%emt 0:02:47]} 23. Rxf4 {[%emt 0:00:12][%cal Oa3c4]} fxe5 {[%emt 0:01:41]} 24. Re4 {[%emt 0:00:49][%cal Oa3c4]} Qg6 {[%emt 0:00:06][%cal Of5d6]} ({But not} 24... Qc6 25. Qd3 $16) 25. Qg5 {[%emt 0:02:11]} ({Better is} 25. Nxe5 $14 Bxe5 26. Rxe5) 25... Qxg5 $15 {[%emt 0:01:55]} 26. Nxg5 {[%emt 0:00:02][%cal Oa3c4]} h6 {[%emt 0:00:01]} 27. Nf3 {[%emt 0:00:08]} Ne7 $1 {[%emt 0:00:02]} 28. Nc4 {[%emt 0:01:30]} Nd5 {[%emt 0:00:19]} 29. Ncxe5 {[%emt 0:00:34]} Bxe5 {[%emt 0:02:02]} 30. Nxe5 {[%emt 0:03:12]} Nxb4 {[%emt 0:00:38][%cal Of8d8] ...Rfd8! is the strong threat.} 31. Rb1 {[%emt 0:00:34]} Nc6 {[%emt 0:01:30]} 32. Rxb7 {[%emt 0:01:10]} Nxe5 {[%emt 0:01:20]} 33. Rxe5 $17 {[%emt 0:00:03][%cal Og1f1][%mdl 4096] Endgame KRR-KRR} d3 {[%emt 0:00:01]} 34. Kf1 {[%emt 0:00:54][%cal Ob7d7]} Rf5 {[%emt 0:01:15]} 35. Rxf5 {[%emt 0:00:17]} exf5 $15 {[%emt 0:00:01] KR-KR} 36. Rd7 {[%emt 0:00:10]} Rxc5 {[%emt 0:00:02][%cal Rc5c1]} 37. Rxd3 {[%emt 0:00:02]} Rxa5 {[%emt 0:00:00]} 38. Rd6 {[%emt 0:00:33]} f4 {[%emt 0:00:25]} (38... Kf7 $17) 39. Ke2 {[%emt 0:00:07]} Ra3 {[%emt 0:00:09]} 40. h4 {[%emt 0:00:18]} Kf7 {[%emt 0:00:25]} (40... a5 $17) 41. Rd4 $1 $11 {[%emt 0:00:22] [#]} f3+ $1 {[%emt 0:01:15]} 42. gxf3 {[%emt 0:00:02]} Ra5 {[%emt 0:00:39]} 43. Rd7+ {[%emt 0:00:48] The position is equal.} Kf6 {[%emt 0:00:02]} 44. f4 {[%emt 0:00:10]} h5 {[%emt 0:00:34]} 45. Kf3 {[%emt 0:00:05]} g6 {[%emt 0:00:15]} 46. Ke4 {[%emt 0:00:07]} Ra4+ {[%emt 0:00:22]} 47. Kf3 {[%emt 0:00:02]} a5 {[%emt 0:00:51]} 48. Rd6+ {[%emt 0:00:09]} Kf5 {[%emt 0:00:01]} 49. Rd5+ {[%emt 0:00:03]} Ke6 {[%emt 0:00:00]} 50. Rb5 {[%emt 0:00:04]} Ra3+ {[%emt 0:00:54]} 51. Ke4 {[%emt 0:00:05]} Ra2 {[%emt 0:00:01]} 52. Rb6+ {[%emt 0:00:42]} Kf7 {[%emt 0:00:01]} 53. Rb7+ {[%emt 0:00:20]} Kf6 {[%emt 0:00:03]} 54. Rb6+ {[%emt 0:00:10]} Kg7 {[%emt 0:00:01]} 55. Kf3 {[%emt 0:00:13]} a4 {[%emt 0:00:04]} 56. Rb7+ {[%emt 0:00:14]} Kh6 {[%emt 0:00:30]} 57. Ra7 {[%emt 0:00:06]} Ra3+ {[%emt 0:00:24]} 58. Kg2 {[%emt 0:00:02]} Ra2 {[%emt 0:00:05]} 59. Kf3 {[%emt 0:00:03]} Ra3+ {[%emt 0:00:00]} 60. Kg2 {[%emt 0:00:00]} Ra2 {[%emt 0:00:01]} 61. Kf3 {[%emt 0:00:01] Weighted Error Value: White=0.12 (very precise) /Black=0.11 (very precise) Mistake: 	White=4 	Black=4 Inaccurate: 	White=2 	Black=1 OK: 	White=23 	Black=18 Best: 	White=1 	Black=6 Strong: 	White=3 	Black=2} 1/2-1/2